Cogmind - Beta 15 @@@ ROGUE MODE // 2025.07.12 @ 15:51:57 Player: StaticNoob Result: Destroyed by D-53 Grenadier with Mini Grenade Launcher Performance ------------- Evolutions (0) 0 Regions Visited (2) 400 Robots Destroyed (23) 115 Value Destroyed (437) 437 Prototype IDs (3) 60 Alien Tech Used (0) 0 Bonus (0) 0 TOTAL SCORE: 1012 Bonus ------- None Cogmind --------- Core Integrity 0/250 Matter 198/300 Energy 85/100 System Corruption 1% Temperature Cool (0) Movement Walking (120) Location -10/Mines Parts ------- > --- POWER (1) -------- (None) > --- PROPULSION (2) --- Aluminum Leg Aluminum Leg > --- UTILITY (2) ------ Small Storage Unit Targeting Computer > --- WEAPON (2) ------- Grenade Launcher > --- INVENTORY (8) ---- Aluminum Leg Small Storage Unit Small Storage Unit Light Assault Rifle Grenade Launcher Grenade Launcher Peak State ------------ > --- POWER ------------ Light Ion Engine > --- PROPULSION ------- Light Treads Light Treads > --- UTILITY ---------- Small Storage Unit Improved Terrain Scanner > --- WEAPON ----------- Small Laser Small Laser > --- INVENTORY -------- Light Ion Engine Wheel Wheel Small Storage Unit [Rating: 9] Favorites ----------- Power Light Ion Engine Engine Light Ion Engine Propulsion Light Treads Treads Light Treads Leg Aluminum Leg Utility Small Storage Unit Device Seismic Detector Storage Small Storage Unit Processor Targeting Computer Weapon Light Assault Rifle Energy Gun Small Laser Ballistic Gun Light Assault Rifle Launcher Grenade Launcher Build | -11 -10 -10 ------- Run | Yrd Mat Min Slots Evolved . | . . . Power . | . . . Propulsion . | . . . Utility . | . . . Weapon . | . . . Parts Attached 21 | 8 4 9 Power 4 | 1 2 1 Engine 4 | 1 2 1 Core . | . . . Reactor . | . . . Propulsion 5 | 2 . 3 Treads 2 | 2 . . Leg 3 | . . 3 Wheel . | . . . Hover . | . . . Flight . | . . . Utility 5 | 3 . 2 Device 2 | 2 . . Storage 2 | 1 . 1 Processor 1 | . . 1 Hackware . | . . . Protection . | . . . Artifact . | . . . Weapon 7 | 2 2 3 Energy Gun 2 | 2 . . Energy Cannon . | . . . Ballistic Gun 3 | . 2 1 Ballistic Cannon . | . . . Launcher 2 | . . 2 Special Weapon . | . . . Impact Weapon . | . . . Slashing Weapon . | . . . Piercing Weapon . | . . . Special Melee Weapon . | . . . Unidentified Prototypes . | . . . Parts Lost 8 | . 1 7 Power 3 | . 1 2 Propulsion 2 | . . 2 Utility 1 | . . 1 Weapon 2 | . . 2 Highest Loss Streak 3 | . 1 3 To Critical Strikes . | . . . Average Backups 6 | 3 6 7 Power 1 | . 1 . Propulsion 1 | 1 1 . Utility 1 | . 1 1 Weapon 3 | . 2 4 Tool/Special . | . . . Unused Backups 7 | . 2 5 Power 1 | . . 1 Propulsion 3 | . 2 1 Utility 1 | . . 1 Weapon 2 | . . 2 Tool/Special . | . . . Average Slot Usage (%) 99 | . 99 98 Engine 13 | . 13 14 Treads 18 | . 28 3 Leg 8 | . . 24 Device 10 | . 14 5 Storage 14 | . 14 14 Processor 3 | . . 8 Energy Gun 2 | . 4 . Ballistic Gun 24 | . 23 27 Peak Build Rating 9 | 9 7 7 Average Rating 6 | 5 6 6 On Entrance 4 | . 7 7 Naked Turns . | . . . Heaviest Build 12 | 11 11 12 Greatest Support 40 | 40 40 40 Greatest Overweight (x) 1 | 1 . 1 Average Overweight (x) . | . . . Largest Inventory Capacity 8 | 8 8 8 Average Capacity 7 | 6 8 8 Most Carried 8 | 5 8 8 Average Carried 6 | 3 6 7 Final Capacity 8 | 8 8 8 Final Carried 8 | 4 8 6 Class Distribution -------------------- 66% | Scavenger-Mutant 33% | Mutant Dominant Class ---------------- Scavenger-Mutant | -10/Materials Scavenger-Mutant | -10/Mines Resources | -11 -10 -10 ----------- Run | Yrd Mat Min Matter Collected 479 | 140 213 126 Remotely . | . . . Salvage Created 666 | 109 245 312 Parts 43 | 11 15 17 Haulers Intercepted . | . . . Recyclers Shooed 4 | 1 . 3 Parts Field Recycled . | . . . Retrieved Matter . | . . . Parts Self-Destructed . | . . . Prevented . | . . . Kills | -11 -10 -10 ------- Run | Yrd Mat Min Combat Hostiles Destroyed 20 | . 9 11 Guns 13 | . 9 4 AOE 7 | . . 7 Classes Destroyed 5 | 2 2 1 Tunneler 4 | 3 . 1 Recycler 3 | 1 . 2 Swarmer 8 | . 5 3 Grunt 8 | . 4 4 Assembled 4 | . . 4 Best Kill Streak 5 | 4 5 4 Combat Bots Only 5 | . 5 4 Max Kills in Single Turn 3 | 1 2 3 Gunslinging 1 | . 1 . Exploded 3 | . . 3 Melee . | . . . Uniques/NPCs Destroyed . | . . . Combat | -11 -10 -10 -------- Run | Yrd Mat Min Hostile Shots Fired 137 | . 78 59 Missed 40 | . 24 16 Hits 97 | . 54 43 Projectile 97 | . 54 43 AOE 4 | . . 4 Critical Strikes 2 | . 1 1 Damage Taken 1214 | . 546 668 Core 255 | . 112 143 Absorbed by Shields . | . . . Regen/Repaired (Parts) 35 | . 35 . Core Remaining (%) 100 | 100 . . Volleys Fired 78 | 7 33 38 Largest 2 | 2 2 2 Hottest 80 | 80 80 60 Shots Fired 153 | 14 67 72 Gun 147 | 14 67 66 Cannon . | . . . Launcher 6 | . . 6 Special . | . . . Kinetic 105 | . 39 66 Thermal 42 | 14 28 . Explosive 6 | . . 6 Electromagnetic . | . . . Robot Hit Streak 13 | 8 10 13 Robot Miss Streak 4 | 1 4 3 Penetration Max . | . . . Secondary Targets 3 | . 2 1 Max Gunslinging Chain 1 | . 1 1 Shots Hit Robots 107 | 12 44 51 Core Hits 55 | 5 18 32 Critical Kills 1 | . . 1 Critical Parts Destroyed 1 | . . 1 Critical Strikes 2 | . . 2 Destroy 2 | . . 2 Melee Attacks . | . . . Impact . | . . . Slashing . | . . . Piercing . | . . . Sneak Attacks . | . . . Combat Hostiles . | . . . Follow-up Attacks . | . . . Damage Inflicted 1479 | 128 437 914 Guns 949 | 128 435 386 Cannons . | . . . Explosions 525 | . . 525 Melee . | . . . Ramming 5 | . 2 3 Kinetic 626 | . 240 386 Thermal 323 | 128 195 . Explosive 525 | . . 525 Electromagnetic . | . . . Impact . | . . . Slashing . | . . . Piercing . | . . . Highest Corruption 1 | . 1 1 Average Corruption 1 | . 1 1 Corruption Purged . | . . . Corruption Blocked . | . . . Effects 9 | . 4 5 Matter Fused 2 | . 1 1 Heat Flow Errors 1 | . 1 . Energy Discharges 2 | . . 2 Parts Fused 1 | . . 1 Misfires 2 | . 1 1 Alerts 1 | . 1 . Overload Shots . | . . . Overflow Damage 74 | . . 74 Projectiles . | . . . Explosions 74 | . . 74 Melee . | . . . Knockbacks . | . . . Impact . | . . . Kinetic . | . . . Secondary . | . . . Self-Inflicted Damage 77 | . . 77 Shots 2 | . . 2 Rammed 1 | . 1 . Targets Rammed 2 | . 1 1 Kicked 1 | . . 1 Crushed . | . . . Highest Temperature 232 | 54 232 36 Average Temperature 43 | 22 60 14 Received Heat Transfer 312 | . 141 171 Siege Activations . | . . . Martial Activations . | . . . Shielding Activations . | . . . Robots Disrupted . | . . . Combat Hostiles . | . . . Robots Corrupted . | . . . Combat Hostiles . | . . . Parts Fried . | . . . Impact Corruptions . | . . . Robots Melted . | . . . Combat Hostiles . | . . . Parts Melted 1 | . 1 . Heat Transferred 725 | 300 425 . Parts Sabotaged . | . . . Parts Stolen . | . . . Parts Stripped . | . . . Power Chain Reactions . | . . . Alert | -11 -10 -10 ------- Run | Yrd Mat Min Maximum Alert Level . | . . . Low Security (%) 100 | 100 100 100 Level 1 . | . . . Level 2 . | . . . Level 3 . | . . . Level 4 . | . . . Level 5 . | . . . High Security . | . . . Max Security . | . . . Peak Influence 130 | 15 130 79 Initial . | . . . Average 26 | 3 32 19 Influence Increases 493 | 20 263 210 Destroy 0b10 Robot/C 320 | . 180 140 Destroy 0b10 Robot/NC 35 | 20 . 15 Destroy Leader 70 | . 40 30 Successful Hack 43 | . 43 . Destroy Structure 25 | . . 25 Influence Decreases 460 | 20 263 177 Time Decay 400 | 20 253 127 Lost Part 60 | . 10 50 Squads Dispatched 2 | . 2 . Investigation . | . . . Extermination . | . . . Reinforcement 2 | . 2 . Assault . | . . . Garrison . | . . . Intercept . | . . . Searches Triggered . | . . . Construction Impeded . | . . . Haulers Reinforced . | . . . Active Scanning Responses . | . . . Cargo Convoy Interrupts . | . . . Stealth | -11 -10 -10 --------- Run | Yrd Mat Min Distress Signals . | . . . Communications Jammed . | . . . Distress Signals . | . . . Times Spotted 30 | . 13 17 Peak Tracking Total 10 | . 4 10 Tactical Retreats . | . . . Traps | -11 -10 -10 ------- Run | Yrd Mat Min Traps Triggered 1 | . 1 . Indirectly . | . . . Trap Hack Attempts . | . . . Triggered . | . . . Disarmed . | . . . Reprogrammed . | . . . Reused . | . . . Traps Extracted . | . . . Installed . | . . . Triggered . | . . . Machines | -11 -10 -10 ---------- Run | Yrd Mat Min Machines Disabled . | . . . Max in Single Turn . | . . . Machines Repaired . | . . . Machines Dismantled . | . . . Machines Sabotaged . | . . . Overloaded Fab Kills . | . . . Hacking | -11 -10 -10 --------- Run | Yrd Mat Min Machines Accessed 7 | . 7 . Terminals 5 | . 5 . Fabricators . | . . . Repair Stations 1 | . 1 . Recycling Units 1 | . 1 . Scanalyzers . | . . . Garrison Access . | . . . Total Hacks 28 | . 28 . Successful 18 | . 18 . Failed 9 | . 9 . Catastrophic 1 | . 1 . Database Lockouts 1 | . 1 . Manual 20 | . 20 . Terminals 24 | . 24 . Fabricators . | . . . Repair Stations 2 | . 2 . Recycling Units 2 | . 2 . Scanalyzers . | . . . Garrison Access . | . . . Terminal Hacks 11 | . 11 . Robot Analysis 1 | . 1 . Prototype ID Bank 2 | . 2 . Branch Access Points 1 | . 1 . Locate Traps 3 | . 3 . Dispatch Records 1 | . 1 . Garrison Status 1 | . 1 . Recall Investigation 1 | . 1 . Recall Reinforcements 1 | . 1 . Fabricator Hacks . | . . . Repair Station Hacks 2 | . 2 . Scan Component 1 | . 1 . Repair 1 | . 1 . Recycling Unit Hacks 1 | . 1 . Retrieve Components 1 | . 1 . Scanalyzer . | . . . Garrison Access Hacks . | . . . Unauthorized Hacks 4 | . 4 . Terminals 4 | . 4 . Botnet 3 | . 3 . Skim 1 | . 1 . Fabricators . | . . . Repair Stations . | . . . Recycling Units . | . . . Scanalyzers . | . . . Garrison Access . | . . . Data Cores Recovered . | . . . Used . | . . . Hacking Detections 6 | . 6 . Full Trace Events . | . . . Feedback Events . | . . . Feedback Blocked . | . . . Robot Schematics Acquired . | . . . Robots Built . | . . . Authchips . | . . . Time . | . . . Total Robot Build Rating . | . . . Part Schematics Acquired . | . . . Parts Built . | . . . Authchips . | . . . Time . | . . . Total Part Build Rating . | . . . Parts Repaired 1 | . 1 . Time 26 | . 26 . Parts Recycled . | . . . Recycled Matter . | . . . Retrieved Matter . | . . . Retrieved Components 4 | . 4 . Parts Scanalyzed . | . . . Part Schematics Acquired . | . . . Parts Damaged . | . . . Bothacking | -11 -10 -10 ------------ Run | Yrd Mat Min Used RIF Installer . | . . . Robots Hacked . | . . . Non-combat . | . . . Combat . | . . . Robot Hacks Applied . | . . . Relay Couplers Released . | . . . Fabnet Peak Effective % . | . . . Robots Rewired . | . . . Allies Hacked . | . . . Hacks Repelled . | . . . Allies | -11 -10 -10 -------- Run | Yrd Mat Min Total Allies . | . . . Largest Group . | . . . Highest-Rated Group . | . . . Highest-Rated Ally . | . . . Total Orders . | . . . Ally Attacks . | . . . Total Damage . | . . . Kills . | . . . Allies Corrupted . | . . . Allies Melted . | . . . Intel | -11 -10 -10 ------- Run | Yrd Mat Min Active Infowar (turns) 1062 | 20 842 200 Terrain 18 | 18 . . Seismic 1044 | 2 842 200 Robot Analysis Total 1 | . 1 . Derelict Logs Recovered 1 | . . 1 Drone Launches . | . . . Drone Recoveries . | . . . Exploration | -11 -10 -10 ------------- Run | Yrd Mat Min Turns Passed 1427 | 86 842 499 Spaces Moved 764 | 42 414 308 Core 17 | 17 . . Treads 469 | 25 414 30 Legs 278 | . . 278 Wheels . | . . . Hover . | . . . Flight . | . . . Fastest Speed 50 | 50 160 120 Average Speed 143 | 116 160 124 Slowest Speed 190 | 160 160 190 Overloaded Moves . | . . . Propulsion Burnouts . | . . . Robots Hopped . | . . . Potential Cave-ins . | . . . Cave-ins Triggered . | . . . Exploration Rate (%) 53 | 5 82 74 Regions Visited 2 Branch Regions 1 Pre-discovered Areas . | . . . Known Exits Taken 1 | . 1 . Unknown Exits Taken 1 | 1 . . Scrap Searched 1 | . . 1 Spaces Dug . | . . . Terrain Destroyed 40 | . . 40 Melee . | . . . Projectile . | . . . AOE 40 | . . 40 Terrain Rammed . | . . . Walls Destroyed . | . . . Machines Disabled . | . . . Actions | -11 -10 -10 --------- Run | Yrd Mat Min Total 962 | 62 536 364 Wait 71 | . 70 1 Move 762 | 41 413 308 Hop . | . . . Pick Up 17 | 6 8 3 Fast Attach 9 | 5 2 2 Attach 8 | 2 2 4 Detach 1 | . 1 . Swap 7 | 1 1 5 Drop 7 | . 5 2 Fire 78 | 7 33 38 Melee . | . . . Ram . | . . . Kick 1 | . . 1 Crush 1 | . 1 . Escape Stasis . | . . . Rewire . | . . . Trap . | . . . Miscellaneous . | . . . Route ------- -11/Scrapyard -10/Materials (discovered 4 exits: [*Mat x3] / *Min) -10/Mines (discovered 1 exit: [*Mat]) History --------- Turn | Location | Event 23 | -11/Scrapyard | Discovered new exit (range 15) 87 | -11/Scrapyard | Entered Materials 259 | -10/Materials | Repaired Lgt. Ion Engine 302 | -10/Materials | Build established: Mutant 314 | -10/Materials | Discovered new exit (range 13) 345 | -10/Materials | Identified exit to Mines 494 | -10/Materials | Discovered new exit (range 7) 612 | -10/Materials | Central database locked down 788 | -10/Materials | Discovered new exit (range 12) 790 | -10/Materials | Build established: Scavenger-Mutant 929 | -10/Materials | Entered Mines 972 | -10/Mines | Core integrity fell below 50% 1062 | -10/Mines | Discovered new exit (range 8) 1194 | -10/Mines | Lost 3 parts (1p1u1w) 1387 | -10/Mines | Assembled infested the area 1392 | -10/Mines | Assisted by a Guerilla fighting off Assembled 1426 | -10/Mines | Core integrity fell below 20% 1428 | -10/Mines | Destroyed by D-53 Grenadier with Mini Grenade Launcher Last Messages --------------- need to get out of here! I've been tracking a group of Assembled to figure out where they're coming from, and they're closing on this area, come on!" 01411_ Kicked as-47304 out of the way. 01420_ Discarded Lgt. Assault Rifle. 01421_ Lgt. Ion Engine destroyed. 01421_ Destroyed Lgt. Ion Engine. 01421_ Aluminum Leg destroyed. 01421_ Destroyed Aluminum Leg. 01421_ as-89140 destroyed. 01421_ Destroyed Asb. Hover Unit. 01421_ as-39654 destroyed. 01421_ as-82100 destroyed. 01422_ Grenade Launcher destroyed. 01424_ as-37354 destroyed. 01424_ as-85972 destroyed. 01424_ as-07608 destroyed. 01426_ as-47304 destroyed. 01427_ The unstable cave ceiling collapses. Map ----- +----------------------------------------------------+ | [ ##?????????????????????????? | | ###???????????????????????? | | ##??????????????????????? | | ### ????????????????? | | #??????????????????? | | # ###??????????????????? | | ##?#????????????????????? | | ##???????????????????????? | | #????????????????????????? | | #????????????????????????? | | #???????????????? ?????? | | ##???????????????? ?????? | | ## ##????????????????? ?????? | | ##?###?????????????????? ?????? | | #??????????????????????? ?????? | | ???????????????????????? ?????? | | ???????????????????????? ?????? | | ???????????????????????? ?????? | | ????????????????????????# ?????? | | ??????????????????????### ####??? | | ??????????????????????# #??? | | ??????????????????????# #??? | | ?????????????????????## a # ##?? | | ?????????????????????# #?? | | ??????????????????#### #?? | | ??????????????????# @ #?? | | ?????????????????## #??? | | ?????????????????# #??? | | ?????????????????# #??? | | ?????????????????## #??? | | ?????????##? ????# d ########??? | | ?????????# ? ????# d ??????????? | | ?????????# ? #???# #??????????? | | ????????? ?? #??# #??????????? | | ????????? ?? ##### #??????????? | | ????????## ?? ##?# #??????????? | | ####???## ### ### #####??????? | | ### ## ## #??????? | | ####??# ## ## ### #??????? | | ??????# """ ## ## #?# #??????? | | ??????# """ ## ## #?# #####??? | | ??????# """ ## ### ##?? | | ??????# """ ### ## #?? | | ?????## #?? | | ????## #?? | | ???## ##### #?? | | ?### #??## #?? | | ## # # #####???## #?? | | ##########????????#### ##?? | | ###????????????????????#####??? | +----------------------------------------------------+ Best States ------------- Heat Dissipation 25 Energy Generation 10 Energy Capacity 125 Matter Stores 300 Matter Capacity 300 Sight Range 16 Terrain Scan Range 16 Terrain Scan Density 10 Evasion (%) 55 Targeting Accuracy 5 Recoil Reduction 2 Item Schematics ----------------- None Robot Schematics ------------------ None Fabricated ------------ Nothing Repaired ---------- Lgt. Ion Engine | 12% | -10/Materials Alien Tech Used ----------------- None Achievements -------------- None Challenges ------------ None Game ------ Seed ComponentAssemblyKatana Manual? 0 Play Time 00:13:50 Cumulative 109.6 hours Start 2025.07.12 @ 15:40:45 End 2025.07.12 @ 15:51:57 Sessions 1 Manual Loads 0 Difficulty Rogue Special Mode None Game No. 110 Rogue 110 Adventurer 0 Explorer 0 Win Type - Total 2 Types 1/0/1/0/0/0/0/0/0/0 Lore% 60 Gallery% 59 Achievement% 53 Wizard Run 0 Options --------- Layout 1 ASCII 0 Keyboard 0 Movement Numpad Keybinds 0 Fullscreen 1 Font 24/Smallcaps Map View 50x35 Zoom Use 0% Tactical HUD 1 Map Filters NONE Filters NONE Steam 1 RUN: 0defc87d-8f19-41f4-903a-536d97cdae79